bitfinex-derivatives/quotes_ETHF0:USTF0_20250125
["timestamp","ask_amount","ask_price","bid_price","bid_amount"]
[1737765693545,0.4777,3292.6,3291.7,3.2078]
[1737765693750,0.48607,3291.9,3291.7,3.2078]
[1737765695355,0.48607,3291.8,3291.7,3.2078]
[1737765695556,0.48609,3291.8,3291.5,0.00456002]
[1737765695866,0.4861,3291.6,3291.5,0.00456002]
[1737765696657,0.48616,3291.3,3290.8,3.2078]
[1737765696863,0.00456002,3292.1,3290.8,3.2078]
[1737765696864,3.6985,3291.5,3290.8,3.2078]
[1737765697065,0.5259,3291.4,3290.8,3.2078]
[1737765697266,3.2078,3291.0,3290.3,2.83494255]
[1737765697761,0.48624,3290.7,3290.3,2.83494255]
[1737765697967,0.48624,3290.7,3290.3,2.83950257]
[1737765698262,3.2078,3291.0,3290.3,0.00456002]
[1737765698567,0.48623,3290.8,3290.3,0.00456002]
[1737765698872,3.2078,3291.0,3290.3,0.00456002]
[1737765698873,3.2078,3291.0,3290.5,0.48625]
[1737765699263,3.2078,3291.0,3290.3,2.83950257]
[1737765699459,3.2078,3291.0,3290.5,0.48625]
[1737765699762,3.2078,3291.0,3290.3,2.83950257]
[1737765699959,3.2078,3291.0,3290.5,3.2078]
[1737765700164,0.9972,3291.5,3291.2,0.48616]
[1737765700363,0.9972,3291.5,3290.9,3.2078]
[1737765700568,0.9972,3291.5,3291.3,0.48615]
[1737765701053,0.9972,3291.5,3290.9,3.2078]
[1737765701054,0.9972,3291.5,3291.2,0.48616]
[1737765701967,0.9972,3291.5,3290.9,3.2078]
[1737765702264,0.4779,3292.0,3291.1,2.83494255]
[1737765702464,0.48608,3291.8,3291.3,0.48614]
[1737765702856,0.48606,3291.9,3291.4,0.48612]
[1737765703052,0.4779,3292.0,3291.6,0.48609]
[1737765703257,0.96395,3292.0,3291.6,0.48609]
[1737765703463,0.4779,3292.0,3291.3,3.2078]
[1737765703765,0.96395,3292.0,3291.5,0.48611]
[1737765704366,0.4779,3292.0,3291.3,3.2078]
[1737765704561,0.4779,3292.0,3291.7,0.48609]
[1737765704860,0.00456002,3292.1,3291.7,0.48609]
[1737765704861,0.00456002,3292.1,3291.7,0.48608]
[1737765705069,0.00456002,3292.1,3292.0,0.48605]
[1737765707764,0.00456002,3292.1,3291.7,3.2078]
[1737765707964,0.49060002,3292.1,3291.7,3.69389]
[1737765708170,0.48606,3292.0,3291.6,0.4861]
[1737765708765,0.49060002,3292.1,3291.6,0.4861]
[1737765708966,0.49060002,3292.1,3291.5,2.83494255]
[1737765709266,0.48605,3292.0,3291.5,2.83494255]
[1737765709567,0.00456002,3292.1,3291.5,2.83494255]
[1737765709764,0.00456002,3292.1,3291.9,0.48605]
[1737765709957,0.00456002,3292.1,3292.0,0.48605]
[1737765712868,0.00456002,3292.1,3291.9,2.83494255]
[1737765713074,0.00456002,3292.1,3292.0,0.48605]
[1737765714671,0.00456002,3292.1,3291.8,0.4823]
[1737765714672,0.49059002,3292.1,3291.8,0.48607]
[1737765714872,0.48605,3292.0,3291.7,3.2078]
[1737765715073,0.48605,3292.0,3291.6,0.4861]
[1737765715269,0.00456002,3292.1,3291.6,0.4861]
[1737765715475,0.48605,3292.0,3291.6,0.4861]
[1737765715669,0.4861,3291.7,3291.3,3.69394]
[1737765715982,0.4899,3291.9,3291.3,3.2078]
[1737765716163,0.48613,3291.5,3291.2,3.2078]
[1737765716362,0.48616,3291.3,3291.1,2.83494255]
[1737765716565,0.48616,3291.3,3290.9,0.4862]
[1737765717170,3.6977,3291.9,3290.7,6.04274255]
[1737765717171,3.2078,3291.5,3290.7,6.04274255]
[1737765717566,0.48615,3291.3,3290.7,6.04274255]
[1737765717767,0.5051,3291.4,3290.7,6.52897255]
[1737765717966,0.48619,3291.1,3290.7,6.52897255]
[1737765718166,0.4964,3291.2,3290.8,0.48622]
[1737765718376,0.4964,3291.2,3291.0,0.48618]
[1737765718571,0.4964,3291.2,3290.9,0.4862]
[1737765718773,0.4964,3291.2,3290.7,6.04274255]
[1737765718976,0.48621,3290.9,3290.7,6.04274255]
[1737765719174,0.4964,3291.2,3290.7,6.04274255]
[1737765719478,0.48618,3291.1,3290.7,6.52897255]
[1737765719780,0.48619,3291.1,3290.7,3.32117255]
[1737765720175,0.4964,3291.2,3290.7,2.83494255]
[1737765720377,0.98257,3291.2,3290.9,0.4862]
[1737765720677,0.48628,3290.5,3290.3,6.04730257]
[1737765720875,3.7042,3291.2,3290.3,6.04730257]
[1737765720876,0.48628,3290.4,3290.3,0.00456002]
[1737765721776,0.4777,3290.6,3289.5,3.32135255]
[1737765721777,0.48636,3289.9,3289.5,3.32135255]
[1737765721977,0.48635,3290.0,3289.5,3.32135255]
[1737765722169,0.5016,3290.5,3289.5,2.83494255]
[1737765722170,4.42054384,3290.5,3289.5,2.83494255]
[1737765722369,4.42054384,3290.5,3289.6,0.48639]
[1737765722571,0.48635,3290.0,3289.5,3.32134255]
[1737765722781,0.48635,3290.0,3289.6,0.4864]
[1737765722980,0.00456002,3290.1,3289.6,0.4864]
[1737765723180,0.49089002,3290.1,3289.6,0.4864]
[1737765724077,0.00456002,3290.1,3289.5,6.04274255]
[1737765724578,0.00456002,3290.1,3289.9,0.48635]
[1737765724973,0.00456002,3290.1,3289.7,0.48638]
[1737765725672,0.00456002,3290.1,3289.5,6.04274255]
[1737765725982,0.49089002,3290.1,3289.6,0.48639]
[1737765726185,0.49089002,3290.1,3289.5,6.04274255]
[1737765726383,0.49089002,3290.1,3289.7,0.48638]
[1737765727281,0.00456002,3290.1,3289.7,0.48638]
[1737765727586,0.48636,3289.9,3289.5,6.04274255]
[1737765727775,0.48636,3289.9,3289.5,6.52915255]
[1737765727971,0.00456002,3290.1,3289.5,6.52915255]
[1737765728284,0.48636,3289.9,3289.5,6.52915255]
[1737765728783,0.48634,3290.0,3289.5,6.04274255]
[1737765728981,0.48637,3289.9,3289.5,6.04274255]
[1737765729279,0.48637,3289.9,3289.5,6.52915255]
[1737765729481,0.00456002,3290.1,3289.5,6.04274255]
[1737765730081,0.48634,3290.0,3289.5,6.52914255]
[1737765730283,0.48636,3289.9,3289.5,6.52915255]
[1737765730578,0.00456002,3290.1,3289.1,6.04274255]
[1737765730780,0.00456002,3290.1,3289.1,3.2078]
[1737765730781,3.2078,3289.9,3289.1,3.2078]
[1737765730975,0.48649,3289.0,3288.7,2.83494255]
[1737765731577,0.48651,3288.9,3288.7,2.83494255]
[1737765733187,3.87882945,3289.5,3288.5,3.69436]
[1737765733188,0.48652,3288.8,3288.5,3.2078]
[1737765733388,0.48661,3288.2,3287.9,2.83494255]
[1737765733586,1.0035,3288.7,3287.4,9.89922013]
[1737765733784,5.41563695,3288.7,3287.9,3.2078]
[1737765733985,5.41563695,3288.7,3288.2,0.48661]
[1737765733986,0.00456002,3288.3,3288.2,0.48661]
[1737765734186,0.00456002,3288.3,3288.1,0.48661]
[1737765735382,0.00456002,3288.3,3287.9,3.2078]
[1737765735582,0.00456002,3288.3,3288.2,0.48661]
[1737765735889,0.00456002,3288.3,3288.1,0.48661]
[1737765736089,0.00456002,3288.3,3288.2,0.48661]
[1737765738887,0.00456002,3288.3,3287.9,3.2078]
[1737765739196,0.48663,3288.1,3287.7,0.48667]
[1737765739392,0.48663,3288.1,3287.5,3.2078]
[1737765739597,0.48663,3288.1,3287.8,0.48666]
[1737765740000,0.00456002,3288.3,3288.0,0.48663]
[1737765740191,0.00456002,3288.3,3288.2,0.48661]
[1737765740499,0.00456002,3288.3,3287.8,2.83494255]
[1737765740788,0.48662,3288.1,3287.8,0.48666]
[1737765740990,0.48663,3288.1,3287.7,0.48667]
[1737765741201,3.2078,3287.9,3287.5,3.2078]
[1737765741392,0.4867,3287.6,3287.5,3.2078]
[1737765741890,0.4867,3287.6,3287.2,0.48675]
[1737765742090,0.4867,3287.6,3287.1,3.2078]
[1737765742291,0.48671,3287.5,3287.1,3.69457]
[1737765742487,0.48676,3287.2,3287.1,3.2078]
[1737765743911,3.2078,3287.5,3286.7,0.48682]
[1737765744399,0.48679,3287.0,3286.6,3.32177255]
[1737765744591,0.48679,3287.0,3286.6,2.83494255]
[1737765744792,3.2078,3287.1,3286.4,3.2078]
[1737765745199,0.4868,3286.9,3286.4,3.69466]
[1737765745703,0.5043,3287.0,3286.4,3.2078]
[1737765746001,0.48683,3286.8,3286.4,3.69467]
[1737765746388,0.5029,3286.9,3286.4,3.2078]
[1737765746594,0.48689,3286.3,3286.2,0.24930288]
[1737765746793,1.012,3286.3,3285.4,3.2078]
[1737765747003,3.2078,3286.1,3285.4,3.2078]
[1737765747297,3.2078,3285.5,3284.6,9.89922013]
[1737765747501,0.48705,3285.3,3284.7,0.48712]
[1737765747691,0.48702,3285.4,3284.7,0.48712]
[1737765747999,0.48707,3285.1,3284.6,7.06427758]
[1737765748301,0.48708,3285.1,3284.6,7.06427758]
[1737765748497,3.88009402,3285.3,3284.3,2.83494255]
[1737765748698,0.48708,3285.0,3284.4,0.48717]
[1737765748903,0.4871,3284.9,3284.3,3.32212255]
[1737765749105,3.90911867,3285.2,3284.3,2.83494255]
[1737765749306,3.2078,3285.5,3284.7,0.48711]
[1737765749507,0.48705,3285.3,3284.7,0.48712]
[1737765749706,3.90418936,3285.4,3284.3,2.83494255]
[1737765749899,3.69482,3285.5,3284.9,0.48708]
[1737765750099,3.2078,3285.5,3284.3,2.83494255]
[1737765750399,3.69482,3285.5,3284.9,0.48709]
[1737765750600,3.2078,3285.5,3285.0,0.48707]
[1737765750799,0.48703,3285.4,3284.3,2.83494255]
[1737765751002,3.2078,3285.5,3284.8,3.2078]
[1737765751298,3.2078,3285.9,3285.2,0.48705]
[1737765751504,0.00456002,3286.4,3285.8,0.48696]
[1737765751693,0.00456002,3286.4,3286.3,0.48689]
[1737765752094,0.00456002,3286.4,3286.3,3.69469]
[1737765752302,0.00456002,3286.4,3286.3,0.48689]
[1737765752498,0.4847,3288.0,3286.3,11.04274255]
[1737765752499,3.2078,3287.3,3286.3,11.04274255]
[1737765752699,3.2078,3288.0,3286.8,6.04274255]
[1737765752902,3.2078,3288.0,3287.2,3.2078]
[1737765753205,1.0187,3288.1,3286.7,3.2078]
[1737765753206,3.2078,3287.6,3286.7,3.2078]
[1737765753512,0.48671,3287.5,3286.9,0.4868]
[1737765753707,4.2288,3287.6,3286.7,3.2078]
[1737765753907,0.48673,3287.4,3286.8,0.00456002]
[1737765754105,0.48674,3287.3,3286.8,0.49137002]
[1737765754407,0.00456002,3287.5,3286.8,0.49137002]
[1737765754913,3.2078,3287.2,3286.8,0.00456002]
[1737765755210,3.2078,3287.2,3286.8,0.49137002]
[1737765755714,3.2078,3287.2,3286.9,0.4868]
[1737765757310,0.00456002,3287.5,3286.8,0.00456002]
[1737765757514,0.00456002,3287.5,3287.4,0.48673]
[1737765758903,0.00456002,3287.5,3287.2,0.48674]
[1737765759103,0.00456002,3287.5,3287.4,0.48673]
[1737765761211,0.49127002,3287.5,3287.0,0.48678]
[1737765761416,0.00456002,3287.5,3286.9,0.5117]
[1737765761618,0.00456002,3287.5,3287.2,0.48675]
[1737765761920,0.00456002,3287.5,3287.4,0.48673]
[1737765764020,0.00456002,3287.5,3287.4,1.01293]
[1737765765220,0.48668,3287.8,3287.4,0.5262]
[1737765766229,0.5016,3288.1,3287.3,3.2078]
[1737765766512,0.48679,3287.0,3286.8,0.00456002]
[1737765766914,0.48675,3287.2,3286.8,0.49137002]
[1737765767816,3.2078,3287.4,3286.8,0.00456002]
[1737765768415,3.6946,3286.9,3286.8,0.00456002]
[1737765769013,0.4868,3286.9,3286.8,0.00456002]
[1737765770218,3.2078,3287.3,3286.8,0.00456002]
[1737765770422,3.69454,3287.3,3286.9,0.4868]
[1737765770620,3.69454,3287.3,3286.8,0.00456002]
[1737765770918,3.69454,3287.3,3287.0,0.48678]
[1737765770919,3.2078,3287.3,3287.0,0.48678]
[1737765771220,3.2078,3287.3,3287.1,0.48677]
[1737765771718,3.2078,3287.3,3286.8,0.00456002]
[1737765772018,3.6946,3286.9,3286.8,0.00456002]
[1737765772221,8.6946,3286.9,3286.8,0.00456002]
[1737765772421,0.48689,3286.4,3286.2,3.2078]
[1737765773016,0.48687,3286.5,3286.1,0.48691]
[1737765773211,0.48684,3286.7,3286.1,3.2078]
[1737765773525,0.49140002,3286.7,3286.2,0.4869]
[1737765773709,0.48684,3286.6,3286.2,0.4869]
[1737765773927,0.48684,3286.6,3286.1,3.21236002]
[1737765773928,0.00456002,3286.7,3286.4,0.48686]
[1737765774615,0.00456002,3286.7,3286.1,0.00456002]
[1737765774616,0.00456002,3286.7,3286.5,0.48684]
[1737765774813,0.48686,3286.6,3286.2,0.48689]
[1737765775320,0.48688,3286.4,3286.1,0.00456002]
[1737765775722,0.00456002,3286.7,3286.1,0.00456002]
[1737765775918,0.4869,3286.2,3286.1,0.00456002]
[1737765776409,0.9765,3286.2,3286.1,0.00456002]
[1737765776721,0.48698,3285.7,3285.6,3.2078]
[1737765777225,3.7028,3286.1,3285.6,3.2078]
[1737765777416,4.18973,3286.1,3285.6,3.69479]
[1737765777616,0.48693,3286.0,3285.6,3.69479]
[1737765779422,3.7028,3286.1,3285.6,3.2078]
[1737765779618,3.7028,3286.1,3285.3,2.84573556]
[1737765779823,0.48693,3286.0,3285.6,0.48699]
[1737765780325,3.7028,3286.1,3285.3,2.84573556]
[1737765780522,3.7028,3286.1,3285.4,0.48702]
[1737765780523,0.48696,3285.8,3285.4,0.48702]
[1737765780718,0.48696,3285.8,3285.5,0.48701]
[1737765780927,0.48695,3285.9,3285.5,0.48701]
[1737765781318,3.7028,3286.1,3285.8,0.48696]
[1737765781515,4.18973,3286.1,3285.4,0.48702]
[1737765781817,4.18973,3286.1,3285.5,3.2078]
[1737765781818,3.2078,3286.1,3285.5,3.2078]
[1737765782015,3.2078,3286.1,3284.9,2.84573556]
[1737765782016,0.48698,3285.8,3285.1,3.2078]
[1737765782218,3.95759716,3286.0,3285.1,3.2078]
[1737765782421,0.48705,3285.2,3285.1,3.2078]
[1737765782823,3.7238,3285.6,3284.6,0.99113]
[1737765783120,0.5193,3285.5,3284.6,0.504]
[1737765783323,0.5193,3285.5,3284.8,0.48711]
[1737765783324,0.48706,3285.2,3284.8,0.48711]
[1737765783525,0.5193,3285.5,3284.8,0.48711]
[1737765783920,0.48707,3285.1,3284.8,3.69491]
[1737765784116,0.48707,3285.1,3284.8,3.2078]
[1737765784324,0.48707,3285.1,3284.7,0.48712]
[1737765784625,0.48707,3285.1,3284.5,2.84573556]
[1737765784826,3.2078,3285.2,3284.5,2.84573556]
[1737765785028,0.5193,3285.5,3284.7,3.2078]
[1737765785223,1.00632,3285.5,3285.1,0.48706]
[1737765785419,0.5193,3285.5,3284.8,0.5251]
[1737765785624,0.48705,3285.3,3284.9,0.4871]
[1737765785824,0.48703,3285.4,3285.0,0.48707]
[1737765786432,0.48705,3285.3,3284.9,0.48709]
[1737765786823,0.48705,3285.3,3285.0,0.48707]
[1737765788729,0.5193,3285.5,3284.8,0.5251]
[1737765789129,0.4871,3284.9,3284.7,3.2078]
[1737765789333,0.504,3285.4,3284.7,3.2078]
[1737765789633,0.48711,3284.8,3284.7,3.2078]
[1737765790724,0.48708,3285.0,3284.7,3.69492]
[1737765790930,0.48706,3285.2,3284.9,0.48709]
[1737765791521,0.504,3285.4,3284.7,3.2078]
[1737765791728,0.48703,3285.4,3285.1,0.48706]
[1737765792021,1.5343,3285.5,3284.9,2.84573556]
[1737765792227,1.5343,3285.5,3285.0,0.5208]
[1737765792732,3.9577414,3285.4,3284.7,3.2078]
[1737765793038,0.48711,3284.8,3284.5,0.48715]
[1737765793333,3.2078,3285.1,3284.4,3.2078]
[1737765793529,0.48713,3284.7,3284.4,3.69496]
[1737765793931,0.48713,3284.7,3284.4,3.69497]
[1737765794335,0.48715,3284.6,3284.4,3.2078]
[1737765794928,0.00456002,3285.0,3284.4,3.2078]
[1737765795129,0.00456002,3285.0,3284.1,0.48721]
[1737765795439,0.48715,3284.5,3284.1,0.4872]
[1737765795736,0.48718,3284.4,3284.0,0.48722]
[1737765796341,0.48716,3284.5,3284.2,0.4872]
[1737765796531,3.69494,3284.6,3284.2,0.4872]
[1737765797035,3.2078,3284.6,3283.7,6.05353556]
[1737765797233,3.91547313,3284.5,3283.7,2.84573556]
[1737765797431,4.39537313,3284.5,3283.7,2.84573556]
[1737765797630,0.4799,3284.5,3283.7,2.84573556]
[1737765797832,0.48717,3284.4,3283.8,0.48726]
[1737765798138,0.4799,3284.5,3283.8,0.48726]
[1737765798139,0.48721,3284.2,3283.8,0.48725]
[1737765798529,0.48719,3284.3,3283.9,0.48724]
[1737765798732,0.4799,3284.5,3283.7,2.84573556]
[1737765798935,0.48719,3284.3,3283.9,0.48724]
[1737765799329,0.48721,3284.2,3283.8,0.48725]
[1737765799530,0.4799,3284.5,3283.6,1.0071]
[1737765799736,0.4799,3284.5,3283.8,3.2078]
[1737765800239,3.2078,3284.6,3283.8,3.2078]
[1737765800438,3.2078,3284.6,3284.3,0.48717]
[1737765800741,3.2078,3284.6,3283.8,3.2078]
[1737765801043,0.48716,3284.5,3284.1,0.48721]
[1737765801539,0.48716,3284.5,3284.2,0.48718]
[1737765801841,3.2078,3284.6,3284.5,0.48715]
[1737765802137,0.98586002,3285.0,3284.3,3.2078]
[1737765802440,0.98586002,3285.0,3284.5,0.48715]
[1737765802631,0.4871,3284.9,3284.5,0.48714]
[1737765803437,0.98586002,3285.0,3284.3,3.2078]
[1737765803638,0.48716,3284.5,3284.3,3.2078]
[1737765804643,0.48714,3284.6,3284.3,3.2078]
[1737765804939,0.48713,3284.7,3284.3,3.2078]
[1737765805140,0.48714,3284.6,3284.3,3.2078]
[1737765805537,0.98586002,3285.0,3284.3,3.2078]
[1737765805942,0.98586002,3285.0,3284.5,0.48715]
[1737765806143,1.47295002,3285.0,3284.5,0.48715]
[1737765806444,0.98586002,3285.0,3284.7,0.48712]
[1737765806745,0.98586002,3285.0,3284.6,0.48713]
[1737765806944,1.47294002,3285.0,3284.6,0.48713]
[1737765807145,0.98586002,3285.0,3284.3,3.2078]
[1737765807450,0.4871,3284.9,3284.5,0.48715]
[1737765807839,1.47295002,3285.0,3284.6,0.48713]
[1737765808046,0.00456002,3285.0,3284.7,0.48712]
[1737765808947,0.00456002,3285.0,3284.3,3.2078]
[1737765809140,0.48713,3284.7,3284.3,3.69498]
[1737765809449,0.00456002,3285.0,3284.7,0.48712]
[1737765809640,0.00456002,3285.0,3284.4,0.513]
[1737765809846,0.4871,3284.9,3284.5,0.48715]
[1737765810942,0.00456002,3285.0,3284.5,0.48715]
[1737765811143,0.00456002,3285.0,3284.4,0.513]
[1737765811144,0.48711,3284.8,3284.4,1.00016]
[1737765812147,0.48716,3284.5,3284.3,3.2078]
[1737765812950,3.2078,3284.8,3284.3,3.2078]
[1737765813153,0.48712,3284.8,3284.4,0.48716]
[1737765813542,0.00456002,3285.0,3284.4,0.48716]
[1737765813740,0.48713,3284.7,3284.4,0.48716]
[1737765813945,0.00456002,3285.0,3284.3,3.2078]
[1737765814144,0.48711,3284.8,3284.5,0.48714]
[1737765814955,0.00456002,3285.0,3284.3,3.2078]
[1737765815155,0.48717,3284.4,3284.3,3.2078]
[1737765815354,3.2078,3284.8,3284.1,0.48721]
[1737765815552,0.48717,3284.5,3284.1,0.48721]
[1737765815750,3.2078,3284.8,3284.5,0.48715]
[1737765815954,3.2078,3284.8,3284.2,2.35079748]
[1737765816153,0.48718,3284.4,3284.0,0.48722]
[1737765816354,3.2078,3284.8,3283.9,6.04269748]
[1737765816355,0.48719,3284.3,3283.9,6.52993748]
[1737765816652,3.2078,3284.8,3283.9,6.04269748]
[1737765816858,0.4872,3284.3,3283.9,4.17914]
[1737765817053,3.91702835,3284.7,3283.9,3.6919]
[1737765817355,0.4872,3284.3,3284.0,0.48723]
[1737765817550,0.9872,3284.6,3283.9,4.17913]
[1737765817551,0.48715,3284.5,3283.9,4.17913]
[1737765817758,0.48719,3284.3,3284.0,0.48722]
[1737765818053,0.9872,3284.6,3284.2,2.35079748]
[1737765818260,0.4881,3284.6,3283.9,6.04269748]
[1737765818462,0.48718,3284.4,3284.0,0.48722]
[1737765818660,0.48718,3284.4,3284.0,0.48723]
[1737765818861,0.48719,3284.3,3284.0,0.48722]
[1737765819869,0.48719,3284.3,3283.9,0.4841]
[1737765820576,0.4872,3284.2,3283.9,0.4841]
[1737765820766,0.4881,3284.6,3283.9,6.04269748]
[1737765821065,0.4991,3284.9,3284.2,2.35079748]
[1737765821267,0.4991,3284.9,3283.9,6.04269748]
[1737765821469,0.48717,3284.4,3283.9,6.04269748]
[1737765821872,0.48719,3284.3,3283.9,6.04269748]
[1737765822269,3.2078,3284.5,3283.9,2.83489748]
[1737765822577,3.2078,3284.5,3283.9,0.4841]
[1737765822867,0.48723,3284.0,3283.9,3.6919]
[1737765823272,3.2078,3284.0,3283.0,2.35079748]
[1737765823572,0.48732,3283.4,3283.0,2.35079748]
[1737765823771,3.2078,3284.0,3283.0,2.35079748]
[1737765823972,0.48734,3283.3,3283.0,2.35079748]
[1737765824471,0.4973,3283.9,3283.0,2.35079748]
[1737765824674,0.48739,3282.9,3282.8,3.13902126]
[1737765824868,3.36779748,3282.9,3282.5,8.09634855]
[1737765825173,3.69524,3282.6,3282.5,5.73568707]
[1737765825376,3.2078,3282.6,3282.5,5.73568707]
[1737765825672,0.00456717,3283.2,3282.5,8.94348707]
[1737765825863,0.00456717,3283.2,3283.1,0.48736]
[1737765826070,3.2078,3284.2,3283.1,0.4981]
[1737765826369,3.2078,3285.5,3284.0,5.55859748]
[1737765826569,3.2078,3285.5,3285.0,0.48708]
[1737765826963,3.2078,3285.7,3284.7,3.2078]
[1737765827172,1.026,3286.6,3285.5,3.2078]
[1737765827173,3.2078,3286.1,3285.5,3.2078]
[1737765827378,3.2078,3286.1,3285.9,2.35079748]
[1737765827669,3.21236717,3286.1,3285.6,2.8463156]
[1737765827866,3.21236717,3286.1,3285.6,3.3333056]
[1737765828061,11.80777874,3285.9,3285.6,2.8463156]
[1737765828265,12.29473874,3285.9,3285.6,2.8463156]
[1737765828471,0.48697,3285.8,3285.2,2.8463156]
[1737765828772,3.2078,3285.7,3285.2,2.8463156]
[1737765828971,11.80777874,3285.9,3285.4,0.48702]
[1737765829176,12.29472874,3285.9,3285.3,4.18503]
[1737765829380,12.29472874,3285.9,3285.4,0.5302]
[1737765829874,11.80777874,3285.9,3285.5,0.487]
[1737765830271,11.80777874,3285.9,3285.8,0.48696]
[1737765831178,11.80777874,3285.9,3285.8,5.48696]
[1737765831368,7.37377874,3285.9,3285.8,5.48696]
[1737765831568,4.98637874,3285.9,3285.8,5.93746278]
[1737765831769,0.00456717,3286.1,3286.0,0.48693]
[1737765831969,5.87008002,3286.6,3286.0,2.8463156]
[1737765832170,5.87008002,3286.6,3286.5,6.0541156]
[1737765832576,5.87008002,3286.6,3286.1,2.8463156]
[1737765832976,0.48688,3286.4,3286.1,2.8463156]
[1737765833169,5.87008002,3286.6,3286.1,2.8463156]
[1737765833375,5.87008002,3286.6,3285.7,3.69477]
[1737765833376,0.48693,3286.0,3285.7,6.0541156]
[1737765833574,9.07788002,3286.6,3285.7,6.0541156]
[1737765833773,0.48693,3286.1,3285.7,6.0541156]
[1737765834076,0.4869,3286.3,3285.7,6.0541156]
[1737765834277,9.07788002,3286.6,3285.7,6.0541156]
[1737765834475,0.99181,3286.2,3285.7,6.0541156]
[1737765834681,0.48692,3286.1,3285.7,6.0541156]
[1737765834880,0.5049,3286.2,3285.7,6.0541156]
[1737765835081,0.5049,3286.2,3285.7,6.5410956]
[1737765835384,0.5049,3286.2,3286.0,0.00168053]
[1737765835684,0.99181,3286.2,3286.0,0.00168053]
[1737765836678,3.69472,3286.1,3286.0,0.00168053]
[1737765836974,3.69472,3286.1,3285.7,2.8463156]
[1737765836975,3.7066,3286.1,3285.3,6.0541156]
[1737765837179,3.6948,3285.6,3285.3,2.8463156]
[1737765837377,0.48702,3285.5,3285.3,2.8463156]
[1737765837978,3.2078,3285.6,3285.3,2.8463156]
[1737765838376,3.69479,3285.6,3285.3,2.8463156]
[1737765838983,3.2078,3285.6,3285.3,2.8463156]
[1737765839179,0.4988,3286.1,3285.8,0.48696]
[1737765839383,0.5049,3286.2,3285.8,0.48696]
[1737765839384,0.5049,3286.2,3285.8,2.8463156]
[1737765840485,0.5017,3286.5,3285.8,2.8463156]
[1737765840679,0.4869,3286.2,3285.8,2.8463156]
[1737765841173,0.48692,3286.1,3285.8,2.8463156]
[1737765841582,0.48691,3286.2,3285.8,2.8463156]
[1737765842078,3.2078,3286.1,3285.6,3.2078]
[1737765842283,3.2078,3285.7,3284.9,6.05868277]
[1737765842475,3.2078,3285.3,3284.9,2.85088277]
[1737765842673,0.48708,3285.0,3284.9,0.00456717]
[1737765842878,0.5063,3285.2,3284.5,2.8463156]
[1737765843085,3.2078,3284.7,3284.1,2.8463156]
[1737765843671,0.48716,3284.5,3284.1,2.8463156]
[1737765843876,0.48718,3284.4,3284.1,2.8463156]
[1737765844076,0.00456717,3284.6,3284.1,2.8463156]
[1737765844273,0.48718,3284.4,3284.1,2.8463156]
[1737765844680,0.00456717,3284.6,3284.1,2.8463156]
[1737765845186,0.48718,3284.4,3284.1,2.8463156]
[1737765845988,0.00456717,3284.6,3284.1,2.8463156]
[1737765846185,0.50506717,3284.6,3284.1,2.8463156]
[1737765846381,0.00456717,3284.6,3284.5,0.48715]
[1737765846583,0.00456717,3284.6,3284.5,3.3334656]
[1737765846889,1.0067,3285.8,3285.2,0.48704]
[1737765847180,1.5072,3285.8,3285.1,3.2078]
[1737765847486,0.48702,3285.5,3285.1,3.2078]
[1737765847677,0.48703,3285.4,3285.1,3.2078]
[1737765847877,0.48701,3285.5,3285.1,3.2078]
[1737765849282,0.48701,3285.5,3285.1,3.69486]
[1737765850386,0.49156717,3285.6,3285.2,0.48704]
[1737765850788,0.00456717,3285.6,3285.2,0.48705]
[1737765851191,0.00456717,3285.6,3285.5,0.48701]
[1737765851793,0.00456717,3285.6,3285.5,3.69481]
[1737765852889,0.00456717,3285.6,3285.3,2.8463156]
[1737765853085,0.00456717,3285.6,3285.0,3.2078]
[1737765853492,0.00456717,3285.6,3285.5,0.48701]
[1737765854489,0.00456717,3285.6,3285.3,2.8463156]
[1737765854888,0.00456717,3285.6,3285.5,0.48701]
[1737765855693,0.5248,3286.4,3286.3,0.48689]
[1737765855994,1.0057,3287.0,3286.8,0.4868]
[1737765856395,1.0057,3287.0,3286.7,0.48682]
[1737765856594,0.4818,3287.0,3286.5,3.2078]
[1737765856899,0.4818,3287.0,3286.7,0.48681]
[1737765857098,0.4818,3287.0,3286.5,3.2078]
[1737765857698,0.4818,3287.0,3285.6,2.8463156]
[1737765857699,3.2078,3286.6,3285.6,2.8463156]
[1737765857898,0.4883,3286.5,3285.6,2.8463156]
[1737765858194,0.4883,3286.5,3285.8,0.48696]
[1737765858385,0.48695,3285.9,3285.6,3.3333056]
[1737765858589,3.2078,3286.2,3285.4,0.48701]
[1737765858790,3.2078,3286.2,3285.2,6.0541156]
[1737765858791,0.48693,3286.0,3285.6,0.48698]
[1737765858994,0.48696,3285.9,3285.5,0.49156717]
[1737765859192,0.5234,3286.1,3285.5,0.00456717]
[1737765859394,0.48699,3285.6,3285.5,0.00456717]
[1737765860385,0.4856,3285.7,3285.5,0.00456717]
[1737765860590,0.48694,3286.0,3285.6,0.48699]
[1737765860791,3.7312,3286.1,3285.5,0.00456717]
[1737765860990,0.48699,3285.6,3285.5,0.00456717]
[1737765865094,0.5029,3285.9,3285.8,0.48696]
[1737765865892,0.5029,3285.9,3285.6,0.48698]
[1737765866093,0.48697,3285.8,3285.5,0.49156717]
[1737765866297,0.98985,3285.9,3285.5,0.49156717]
[1737765866495,3.2078,3285.8,3285.5,0.00456717]
[1737765866898,0.5029,3285.9,3285.7,0.48697]
[1737765867102,3.2078,3286.2,3285.8,0.48696]
[1737765867299,3.2078,3286.2,3286.1,0.48692]
[1737765867499,3.2078,3286.2,3285.7,3.2078]
[1737765867709,3.2078,3286.2,3285.8,0.48695]
[1737765867901,3.2078,3286.2,3285.5,0.00456717]
[1737765868096,0.48693,3286.1,3285.5,0.00456717]
[1737765868293,0.48693,3286.1,3285.7,0.48697]
[1737765868797,0.48699,3285.6,3285.5,0.00456717]
[1737765869603,0.99019,3285.6,3285.5,0.00456717]
[1737765870800,0.48704,3285.4,3285.0,0.48707]